[Event "Titled Tuesday Blitz December 14 2021"]
[White "Bagheri, Maziar"]
[Black "Grunberg, Mihai-Lucian"]
[WhiteFideId "12530913"]
[BlackFideId "1204149"]
[WhiteElo "2034"]
[BlackElo "2364"]
[Result "1-0"]
[Round "02"]
[TimeControl "180+1"]
[Date "2021.12.15"]
[WhiteClock "0:00:05"]
[BlackClock "0:00:17"]

1. Nf3 {[%clk 0:03:00]}  d5 {[%clk 0:02:59]} 2. d4 {[%clk 0:03:00]}  c6 {[%clk 0:03:00]} 3. c4 {[%clk 0:02:58]}  Nf6 {[%clk 0:03:01]} 4. Nc3 {[%clk 0:02:57]}  g6 {[%clk 0:03:01]} 5. Bf4 {[%clk 0:02:50]}  Bg7 {[%clk 0:03:00]} 6. e3 {[%clk 0:02:50]}  O-O {[%clk 0:03:00]} 7. Rc1 {[%clk 0:02:45]}  Bg4 {[%clk 0:02:57]} 8. h3 {[%clk 0:02:45]}  Bxf3 {[%clk 0:02:56]} 9. Qxf3 {[%clk 0:02:46]}  e6 {[%clk 0:02:57]} 10. Bd3 {[%clk 0:02:44]}  Nbd7 {[%clk 0:02:56]} 11. O-O {[%clk 0:02:44]}  Qb6 {[%clk 0:02:56]} 12. Qe2 {[%clk 0:02:43]}  Rfc8 {[%clk 0:02:51]} 13. c5 {[%clk 0:02:37]}  Qd8 {[%clk 0:02:51]} 14. b4 {[%clk 0:02:37]}  Qe8 {[%clk 0:02:47]} 15. a4 {[%clk 0:02:36]}  e5 {[%clk 0:02:47]} 16. Bh2 {[%clk 0:02:34]}  e4 {[%clk 0:02:39]} 17. Bb1 {[%clk 0:02:31]}  Nh5 {[%clk 0:02:40]} 18. b5 {[%clk 0:02:15]}  f5 {[%clk 0:02:39]} 19. a5 {[%clk 0:02:08]}  a6 {[%clk 0:02:37]} 20. bxa6 {[%clk 0:02:06]}  Rxa6 {[%clk 0:02:36]} 21. Na4 {[%clk 0:01:57]}  Rxa5 {[%clk 0:02:35]} 22. Bc2 {[%clk 0:01:57]}  f4 {[%clk 0:02:34]} 23. Rb1 {[%clk 0:01:50]}  Ra7 {[%clk 0:02:24]} 24. Rb4 {[%clk 0:01:44]}  Qf7 {[%clk 0:02:22]} 25. Qg4 {[%clk 0:01:37]}  Rf8 {[%clk 0:02:18]} 26. exf4 {[%clk 0:01:25]}  Bxd4 {[%clk 0:02:15]} 27. Rxd4 {[%clk 0:01:20]}  Ra5 {[%clk 0:02:10]} 28. Rb4 {[%clk 0:01:14]}  Nxc5 {[%clk 0:02:09]} 29. Nxc5 {[%clk 0:01:12]}  Rxc5 {[%clk 0:02:10]} 30. Bb3 {[%clk 0:01:12]}  Qf5 {[%clk 0:02:03]} 31. Rxb7 {[%clk 0:00:45]}  Qxg4 {[%clk 0:02:03]} 32. hxg4 {[%clk 0:00:45]}  Nxf4 {[%clk 0:02:03]} 33. Bxf4 {[%clk 0:00:38]}  Rxf4 {[%clk 0:02:04]} 34. f3 {[%clk 0:00:35]}  e3 {[%clk 0:02:01]} 35. Re7 {[%clk 0:00:33]}  Rc3 {[%clk 0:02:00]} 36. Ba2 {[%clk 0:00:28]}  Rf7 {[%clk 0:01:56]} 37. Re8+ {[%clk 0:00:26]}  Kg7 {[%clk 0:01:55]} 38. Re1 {[%clk 0:00:24]}  Ra7 {[%clk 0:01:54]} 39. Bb1 {[%clk 0:00:23]}  d4 {[%clk 0:01:52]} 40. Rd8 {[%clk 0:00:17]}  c5 {[%clk 0:01:51]} 41. Be4 {[%clk 0:00:16]}  Kf6 {[%clk 0:01:36]} 42. f4 {[%clk 0:00:16]}  Re7 {[%clk 0:01:31]} 43. g5+ {[%clk 0:00:14]}  Ke6 {[%clk 0:01:27]} 44. Bf3 {[%clk 0:00:14]}  Ra7 {[%clk 0:01:12]} 45. Bg4+ {[%clk 0:00:12]}  Ke7 {[%clk 0:01:12]} 46. Rd5 {[%clk 0:00:11]}  Rc2 {[%clk 0:01:06]} 47. Rb1 {[%clk 0:00:09]}  Rc7 {[%clk 0:01:02]} 48. Re5+ {[%clk 0:00:09]}  Kf7 {[%clk 0:00:59]} 49. Bd1 {[%clk 0:00:07]}  Rc3 {[%clk 0:00:56]} 50. Bf3 {[%clk 0:00:07]}  c4 {[%clk 0:00:51]} 51. Bd5+ {[%clk 0:00:07]}  Kg7 {[%clk 0:00:51]} 52. Rb8 {[%clk 0:00:06]}  Rf7 {[%clk 0:00:46]} 53. Bxf7 {[%clk 0:00:04]}  Kxf7 {[%clk 0:00:45]} 54. Rd8 {[%clk 0:00:04]}  Rd3 {[%clk 0:00:42]} 55. Re4 {[%clk 0:00:02]}  Rd1+ {[%clk 0:00:37]} 56. Kh2 {[%clk 0:00:05]}  d3 {[%clk 0:00:37]} 57. Rd7+ {[%clk 0:00:01]}  Kf8 {[%clk 0:00:36]} 58. Rd8+ {[%clk 0:00:02]}  Kf7 {[%clk 0:00:36]} 59. Rd7+ {[%clk 0:00:03]}  Kf8 {[%clk 0:00:36]} 60. Rxe3 {[%clk 0:00:03]}  d2 {[%clk 0:00:36]} 61. Ree7 {[%clk 0:00:04]}  c3 {[%clk 0:00:36]} 62. Rf7+ {[%clk 0:00:04]}  Ke8 {[%clk 0:00:35]} 63. Rg7 {[%clk 0:00:05]}  Re1 {[%clk 0:00:31]} 64. Ra7 {[%clk 0:00:05]}  Kf8 {[%clk 0:00:29]} 65. Rxh7 {[%clk 0:00:04]}  Kg8 {[%clk 0:00:29]} 66. Rhd7 {[%clk 0:00:03]}  Re8 {[%clk 0:00:26]} 67. Rac7 {[%clk 0:00:04]}  Re7 {[%clk 0:00:19]} 68. Rd8+ {[%clk 0:00:03]}  Kf7 {[%clk 0:00:19]} 69. Rxc3 {[%clk 0:00:03]}  Re2 {[%clk 0:00:17]} 70. Rcd3 {[%clk 0:00:03]}  Rf2 {[%clk 0:00:16]} 71. Rxd2 {[%clk 0:00:04]}  Rxf4 {[%clk 0:00:16]} 72. R2d7+ {[%clk 0:00:04]}  Ke6 {[%clk 0:00:16]} 73. Rd6+ {[%clk 0:00:05]}  Kf5 {[%clk 0:00:17]} 74. Rf6+ {[%clk 0:00:05]} 1-0


[Site "https://www.chess.com"]

[Event "Titled Tuesday Blitz December 14 2021"]
[White "Devaev, Alexander"]
[Black "Zherebtsova, Alexandra"]
[WhiteFideId "4169395"]
[BlackFideId "24129518"]
[WhiteElo "2185"]
[BlackElo "2025"]
[Result "1/2-1/2"]
[Round "02"]
[TimeControl "180+1"]
[Date "2021.12.15"]
[WhiteClock "0:00:25"]
[BlackClock "0:00:11"]

1. d4 {[%clk 0:03:00]}  d5 {[%clk 0:02:59]} 2. c4 {[%clk 0:03:00]}  e6 {[%clk 0:03:00]} 3. cxd5 {[%clk 0:03:00]}  exd5 {[%clk 0:02:59]} 4. Nc3 {[%clk 0:03:01]}  Nf6 {[%clk 0:02:57]} 5. Bg5 {[%clk 0:03:01]}  c6 {[%clk 0:02:57]} 6. e3 {[%clk 0:03:01]}  Be7 {[%clk 0:02:57]} 7. Bxf6 {[%clk 0:03:01]}  Bxf6 {[%clk 0:02:56]} 8. Bd3 {[%clk 0:03:02]}  O-O {[%clk 0:02:55]} 9. Qc2 {[%clk 0:03:02]}  h6 {[%clk 0:02:43]} 10. Nf3 {[%clk 0:03:01]}  Re8 {[%clk 0:02:39]} 11. h3 {[%clk 0:03:00]}  Nd7 {[%clk 0:02:34]} 12. O-O {[%clk 0:02:54]}  Nf8 {[%clk 0:02:34]} 13. b4 {[%clk 0:02:54]}  a6 {[%clk 0:02:32]} 14. a4 {[%clk 0:02:55]}  Ne6 {[%clk 0:02:17]} 15. Rfd1 {[%clk 0:02:53]}  Bd7 {[%clk 0:02:05]} 16. b5 {[%clk 0:02:51]}  axb5 {[%clk 0:02:03]} 17. axb5 {[%clk 0:02:51]}  Rxa1 {[%clk 0:02:03]} 18. Rxa1 {[%clk 0:02:51]}  Qb8 {[%clk 0:01:51]} 19. bxc6 {[%clk 0:02:16]}  bxc6 {[%clk 0:01:50]} 20. Bf5 {[%clk 0:02:14]}  Qc8 {[%clk 0:01:35]} 21. Rc1 {[%clk 0:02:12]}  g6 {[%clk 0:01:27]} 22. Bd3 {[%clk 0:01:56]}  Bg7 {[%clk 0:01:23]} 23. Na4 {[%clk 0:01:52]}  Qb7 {[%clk 0:01:14]} 24. Rb1 {[%clk 0:01:49]}  Qa7 {[%clk 0:01:13]} 25. Nb6 {[%clk 0:01:43]}  Rb8 {[%clk 0:01:03]} 26. Nxd7 {[%clk 0:01:44]}  Rxb1+ {[%clk 0:01:02]} 27. Qxb1 {[%clk 0:01:44]}  Qxd7 {[%clk 0:01:02]} 28. Qb8+ {[%clk 0:01:34]}  Kh7 {[%clk 0:01:01]} 29. h4 {[%clk 0:01:30]}  c5 {[%clk 0:00:55]} 30. dxc5 {[%clk 0:01:23]}  Nxc5 {[%clk 0:00:54]} 31. Qb1 {[%clk 0:01:17]}  Qe6 {[%clk 0:00:47]} 32. h5 {[%clk 0:01:11]}  Nxd3 {[%clk 0:00:44]} 33. Qxd3 {[%clk 0:01:10]}  Qe4 {[%clk 0:00:44]} 34. hxg6+ {[%clk 0:01:09]}  fxg6 {[%clk 0:00:44]} 35. Qd1 {[%clk 0:01:03]}  g5 {[%clk 0:00:43]} 36. Qc1 {[%clk 0:00:34]}  d4 {[%clk 0:00:37]} 37. exd4 {[%clk 0:00:27]}  Bxd4 {[%clk 0:00:36]} 38. Qc7+ {[%clk 0:00:27]}  Bg7 {[%clk 0:00:35]} 39. Qc1 {[%clk 0:00:24]}  Qd3 {[%clk 0:00:34]} 40. Nh2 {[%clk 0:00:22]}  Qe4 {[%clk 0:00:34]} 41. Nf1 {[%clk 0:00:22]}  Bd4 {[%clk 0:00:33]} 42. Qd2 {[%clk 0:00:21]}  Bg7 {[%clk 0:00:31]} 43. Ng3 {[%clk 0:00:20]}  Qb1+ {[%clk 0:00:31]} 44. Nf1 {[%clk 0:00:21]}  Qe4 {[%clk 0:00:30]} 45. Qa2 {[%clk 0:00:22]}  Qe1 {[%clk 0:00:30]} 46. Qf7 {[%clk 0:00:20]}  Qd1 {[%clk 0:00:28]} 47. Qf5+ {[%clk 0:00:21]}  Kh8 {[%clk 0:00:28]} 48. Qc8+ {[%clk 0:00:21]}  Kh7 {[%clk 0:00:28]} 49. Qf5+ {[%clk 0:00:21]}  Kh8 {[%clk 0:00:28]} 50. Qb5 {[%clk 0:00:22]}  Qe1 {[%clk 0:00:27]} 51. Qd3 {[%clk 0:00:20]}  Qc1 {[%clk 0:00:24]} 52. g3 {[%clk 0:00:20]}  Qe1 {[%clk 0:00:24]} 53. Kg2 {[%clk 0:00:20]}  Qe5 {[%clk 0:00:24]} 54. Qd8+ {[%clk 0:00:20]}  Kh7 {[%clk 0:00:23]} 55. Qd3+ {[%clk 0:00:21]}  Kh8 {[%clk 0:00:22]} 56. Ne3 {[%clk 0:00:21]}  Kg8 {[%clk 0:00:20]} 57. Nf5 {[%clk 0:00:21]}  Qf6 {[%clk 0:00:19]} 58. g4 {[%clk 0:00:21]}  Qe5 {[%clk 0:00:18]} 59. Qc4+ {[%clk 0:00:21]}  Kh7 {[%clk 0:00:18]} 60. Qd3 {[%clk 0:00:21]}  Kg8 {[%clk 0:00:18]} 61. Qc2 {[%clk 0:00:22]}  Kh8 {[%clk 0:00:18]} 62. Ng3 {[%clk 0:00:20]}  Qd5+ {[%clk 0:00:18]} 63. Kh3 {[%clk 0:00:18]}  Qe5 {[%clk 0:00:18]} 64. Qc8+ {[%clk 0:00:19]}  Kh7 {[%clk 0:00:17]} 65. Qc2+ {[%clk 0:00:19]}  Kh8 {[%clk 0:00:17]} 66. Qd3 {[%clk 0:00:19]}  Qf4 {[%clk 0:00:16]} 67. Qe2 {[%clk 0:00:18]}  Qd4 {[%clk 0:00:15]} 68. Qc2 {[%clk 0:00:18]}  Qf4 {[%clk 0:00:14]} 69. Nf5 {[%clk 0:00:18]}  Qf3+ {[%clk 0:00:15]} 70. Ng3 {[%clk 0:00:17]}  Kg8 {[%clk 0:00:14]} 71. Qc8+ {[%clk 0:00:17]}  Kh7 {[%clk 0:00:14]} 72. Qc4 {[%clk 0:00:18]}  Kh8 {[%clk 0:00:14]} 73. Kh2 {[%clk 0:00:18]}  Qxf2+ {[%clk 0:00:13]} 74. Kh3 {[%clk 0:00:18]}  Qf3 {[%clk 0:00:13]} 75. Qc8+ {[%clk 0:00:19]}  Kh7 {[%clk 0:00:12]} 76. Qc2+ {[%clk 0:00:19]}  Kh8 {[%clk 0:00:12]} 77. Qa2 {[%clk 0:00:19]}  Qe3 {[%clk 0:00:10]} 78. Qa8+ {[%clk 0:00:20]}  Kh7 {[%clk 0:00:10]} 79. Qe4+ {[%clk 0:00:15]}  Qxe4 {[%clk 0:00:09]} 80. Nxe4 {[%clk 0:00:16]}  Be5 {[%clk 0:00:09]} 81. Nc5 {[%clk 0:00:15]}  Kg6 {[%clk 0:00:09]} 82. Nd7 {[%clk 0:00:15]}  Bd4 {[%clk 0:00:08]} 83. Nb8 {[%clk 0:00:15]}  h5 {[%clk 0:00:09]} 84. Nc6 {[%clk 0:00:16]}  hxg4+ {[%clk 0:00:08]} 85. Kxg4 {[%clk 0:00:17]}  Bf6 {[%clk 0:00:08]} 86. Nb4 {[%clk 0:00:17]}  Kf7 {[%clk 0:00:08]} 87. Nd5 {[%clk 0:00:17]}  Kg6 {[%clk 0:00:09]} 88. Ne3 {[%clk 0:00:18]}  Kf7 {[%clk 0:00:08]} 89. Nf5 {[%clk 0:00:18]}  Kg6 {[%clk 0:00:08]} 90. Nd6 {[%clk 0:00:19]}  Kg7 {[%clk 0:00:08]} 91. Ne8+ {[%clk 0:00:19]}  Kf7 {[%clk 0:00:08]} 92. Nc7 {[%clk 0:00:20]}  Kg6 {[%clk 0:00:08]} 93. Nd5 {[%clk 0:00:21]}  Kf7 {[%clk 0:00:09]} 94. Ne3 {[%clk 0:00:21]}  Kg6 {[%clk 0:00:09]} 95. Ng2 {[%clk 0:00:22]}  Kf7 {[%clk 0:00:10]} 96. Kf3 {[%clk 0:00:22]}  Kg6 {[%clk 0:00:10]} 97. Kg4 {[%clk 0:00:22]}  Kf7 {[%clk 0:00:10]} 98. Ne3 {[%clk 0:00:23]}  Kg6 {[%clk 0:00:11]} 99. Nd5 {[%clk 0:00:24]}  Kf7 {[%clk 0:00:11]} 100. Kf5 {[%clk 0:00:24]}  Bd8 {[%clk 0:00:10]} 101. Ne3 {[%clk 0:00:24]}  g4 {[%clk 0:00:11]} 102. Nxg4 {[%clk 0:00:25]} 1/2-1/2


[Site "https://www.chess.com"]

[Event "Titled Tuesday Blitz December 14 2021"]
[White "Dilmukhametov, Artur"]
[Black "Pershina, Elena"]
[WhiteFideId "24179922"]
[BlackFideId "24147516"]
[WhiteElo "2272"]
[BlackElo "2084"]
[Result "1/2-1/2"]
[Round "02"]
[TimeControl "180+1"]
[Date "2021.12.15"]
[WhiteClock "0:00:18"]
[BlackClock "0:00:17"]

1. e4 {[%clk 0:03:00]}  e5 {[%clk 0:02:58]} 2. Nf3 {[%clk 0:03:00]}  Nc6 {[%clk 0:02:59]} 3. d4 {[%clk 0:03:00]}  exd4 {[%clk 0:02:58]} 4. Nxd4 {[%clk 0:03:01]}  Bc5 {[%clk 0:02:58]} 5. Nxc6 {[%clk 0:03:00]}  dxc6 {[%clk 0:02:57]} 6. Qxd8+ {[%clk 0:03:00]}  Kxd8 {[%clk 0:02:58]} 7. Bc4 {[%clk 0:03:00]}  f6 {[%clk 0:02:52]} 8. Nd2 {[%clk 0:03:00]}  Ne7 {[%clk 0:02:51]} 9. Nb3 {[%clk 0:03:00]}  Bd6 {[%clk 0:02:48]} 10. Ke2 {[%clk 0:02:58]}  Bg4+ {[%clk 0:02:47]} 11. f3 {[%clk 0:02:57]}  Bh5 {[%clk 0:02:47]} 12. Be3 {[%clk 0:02:57]}  b5 {[%clk 0:02:45]} 13. Bd3 {[%clk 0:02:55]}  Bf7 {[%clk 0:02:41]} 14. Nc5 {[%clk 0:02:39]}  Re8 {[%clk 0:02:35]} 15. Kf2 {[%clk 0:02:31]}  Ng6 {[%clk 0:02:33]} 16. Rad1 {[%clk 0:02:27]}  Ke7 {[%clk 0:02:30]} 17. Be2 {[%clk 0:02:01]}  Nf4 {[%clk 0:02:16]} 18. Nd3 {[%clk 0:01:45]}  Nxd3+ {[%clk 0:02:08]} 19. Bxd3 {[%clk 0:01:43]}  a5 {[%clk 0:02:09]} 20. h4 {[%clk 0:01:38]}  a4 {[%clk 0:02:02]} 21. h5 {[%clk 0:01:37]}  Bxa2 {[%clk 0:02:00]} 22. g4 {[%clk 0:01:25]}  Be6 {[%clk 0:01:57]} 23. g5 {[%clk 0:01:20]}  a3 {[%clk 0:01:47]} 24. bxa3 {[%clk 0:01:18]}  Rxa3 {[%clk 0:01:48]} 25. h6 {[%clk 0:01:15]}  g6 {[%clk 0:01:41]} 26. gxf6+ {[%clk 0:01:13]}  Kxf6 {[%clk 0:01:42]} 27. f4 {[%clk 0:01:12]}  Be7 {[%clk 0:01:21]} 28. Bd4+ {[%clk 0:00:41]}  Kf7 {[%clk 0:01:20]} 29. f5 {[%clk 0:00:41]}  gxf5 {[%clk 0:01:17]} 30. exf5 {[%clk 0:00:42]}  Bd5 {[%clk 0:01:14]} 31. Rhg1 {[%clk 0:00:41]}  Bh4+ {[%clk 0:01:14]} 32. Kf1 {[%clk 0:00:36]}  Rg8 {[%clk 0:00:59]} 33. Rxg8 {[%clk 0:00:17]}  Kxg8 {[%clk 0:01:00]} 34. Rd2 {[%clk 0:00:17]}  Kf7 {[%clk 0:00:55]} 35. Re2 {[%clk 0:00:15]}  Bf6 {[%clk 0:00:52]} 36. Bxf6 {[%clk 0:00:14]}  Kxf6 {[%clk 0:00:52]} 37. Re8 {[%clk 0:00:14]}  Ra1+ {[%clk 0:00:49]} 38. Kf2 {[%clk 0:00:14]}  Rh1 {[%clk 0:00:47]} 39. Rf8+ {[%clk 0:00:12]}  Ke7 {[%clk 0:00:46]} 40. Rc8 {[%clk 0:00:13]}  Rxh6 {[%clk 0:00:45]} 41. Rxc7+ {[%clk 0:00:13]}  Kd6 {[%clk 0:00:44]} 42. Rg7 {[%clk 0:00:12]}  Rh2+ {[%clk 0:00:42]} 43. Ke3 {[%clk 0:00:12]}  Ke5 {[%clk 0:00:40]} 44. Re7+ {[%clk 0:00:11]}  Kf6 {[%clk 0:00:40]} 45. Rc7 {[%clk 0:00:11]}  h5 {[%clk 0:00:39]} 46. Kd4 {[%clk 0:00:11]}  h4 {[%clk 0:00:38]} 47. Rh7 {[%clk 0:00:10]}  h3 {[%clk 0:00:30]} 48. Rh6+ {[%clk 0:00:11]}  Kg7 {[%clk 0:00:28]} 49. Rg6+ {[%clk 0:00:10]}  Kf7 {[%clk 0:00:28]} 50. Ke5 {[%clk 0:00:11]}  Rh1 {[%clk 0:00:25]} 51. Rh6 {[%clk 0:00:11]}  h2 {[%clk 0:00:24]} 52. Kd6 {[%clk 0:00:11]}  Kg7 {[%clk 0:00:19]} 53. Rh4 {[%clk 0:00:10]}  Kf6 {[%clk 0:00:16]} 54. Rh6+ {[%clk 0:00:09]}  Kf7 {[%clk 0:00:15]} 55. Rh7+ {[%clk 0:00:09]}  Kg8 {[%clk 0:00:13]} 56. Rh4 {[%clk 0:00:10]}  Bc4 {[%clk 0:00:10]} 57. Bxc4+ {[%clk 0:00:10]}  bxc4 {[%clk 0:00:11]} 58. Kxc6 {[%clk 0:00:10]}  c3 {[%clk 0:00:12]} 59. Kc5 {[%clk 0:00:11]}  Kf7 {[%clk 0:00:12]} 60. Kc4 {[%clk 0:00:11]}  Kf6 {[%clk 0:00:10]} 61. Rh5 {[%clk 0:00:11]}  Ke5 {[%clk 0:00:09]} 62. Kxc3 {[%clk 0:00:11]}  Kf6 {[%clk 0:00:09]} 63. Kc4 {[%clk 0:00:12]}  Ke5 {[%clk 0:00:09]} 64. c3 {[%clk 0:00:12]}  Kf6 {[%clk 0:00:09]} 65. Kc5 {[%clk 0:00:12]}  Rc1 {[%clk 0:00:10]} 66. Rxh2 {[%clk 0:00:10]}  Rxc3+ {[%clk 0:00:10]} 67. Kd4 {[%clk 0:00:10]}  Ra3 {[%clk 0:00:09]} 68. Rf2 {[%clk 0:00:09]}  Ra4+ {[%clk 0:00:09]} 69. Ke3 {[%clk 0:00:10]}  Rb4 {[%clk 0:00:09]} 70. Rf4 {[%clk 0:00:06]}  Rxf4 {[%clk 0:00:09]} 71. Kxf4 {[%clk 0:00:07]}  Kf7 {[%clk 0:00:10]} 72. Kg4 {[%clk 0:00:08]}  Kf6 {[%clk 0:00:10]} 73. Kf4 {[%clk 0:00:08]}  Kf7 {[%clk 0:00:11]} 74. Kg5 {[%clk 0:00:09]}  Kg7 {[%clk 0:00:11]} 75. f6+ {[%clk 0:00:10]}  Kf7 {[%clk 0:00:12]} 76. Kf5 {[%clk 0:00:11]}  Kf8 {[%clk 0:00:13]} 77. Kg5 {[%clk 0:00:12]}  Kf7 {[%clk 0:00:13]} 78. Kf5 {[%clk 0:00:12]}  Kf8 {[%clk 0:00:14]} 79. Ke4 {[%clk 0:00:13]}  Kf7 {[%clk 0:00:14]} 80. Ke5 {[%clk 0:00:14]}  Kf8 {[%clk 0:00:14]} 81. Ke6 {[%clk 0:00:14]}  Ke8 {[%clk 0:00:15]} 82. Kf5 {[%clk 0:00:15]}  Kf7 {[%clk 0:00:15]} 83. Kg5 {[%clk 0:00:15]}  Kf8 {[%clk 0:00:16]} 84. Kg6 {[%clk 0:00:16]}  Kg8 {[%clk 0:00:16]} 85. Kh6 {[%clk 0:00:17]}  Kf7 {[%clk 0:00:16]} 86. Kg5 {[%clk 0:00:17]}  Kf8 {[%clk 0:00:17]} 87. Kf4 {[%clk 0:00:17]}  Kf7 {[%clk 0:00:17]} 88. Kg5 {[%clk 0:00:18]} 1/2-1/2


[Site "https://www.chess.com"]

[Event "Titled Tuesday Blitz December 14 2021"]
[White "Dubov, Daniil"]
[Black "Nazaretyan, Tigran"]
[WhiteFideId "24126055"]
[BlackFideId "24162345"]
[WhiteElo "2749"]
[BlackElo "2192"]
[Result "1-0"]
[Round "02"]
[TimeControl "180+1"]
[Date "2021.12.14"]
[WhiteClock "0:01:47"]
[BlackClock "0:00:39"]

1. e4 {[%clk 0:03:00]}  c5 {[%clk 0:02:59]} 2. Nf3 {[%clk 0:03:01]}  Nc6 {[%clk 0:02:59]} 3. Bb5 {[%clk 0:02:59]}  g6 {[%clk 0:02:59]} 4. O-O {[%clk 0:02:59]}  Bg7 {[%clk 0:02:58]} 5. c3 {[%clk 0:02:59]}  Nf6 {[%clk 0:02:58]} 6. Re1 {[%clk 0:02:59]}  O-O {[%clk 0:02:57]} 7. d4 {[%clk 0:02:59]}  d5 {[%clk 0:02:57]} 8. e5 {[%clk 0:02:59]}  Ne4 {[%clk 0:02:57]} 9. Bxc6 {[%clk 0:02:59]}  bxc6 {[%clk 0:02:57]} 10. Be3 {[%clk 0:03:00]}  cxd4 {[%clk 0:02:56]} 11. cxd4 {[%clk 0:03:00]}  a5 {[%clk 0:02:55]} 12. Nfd2 {[%clk 0:02:59]}  Nxd2 {[%clk 0:02:50]} 13. Qxd2 {[%clk 0:02:57]}  a4 {[%clk 0:02:50]} 14. Nc3 {[%clk 0:02:56]}  Qb6 {[%clk 0:02:39]} 15. h4 {[%clk 0:02:55]}  f6 {[%clk 0:02:36]} 16. h5 {[%clk 0:02:51]}  g5 {[%clk 0:02:31]} 17. h6 {[%clk 0:02:47]}  Bxh6 {[%clk 0:02:29]} 18. Rac1 {[%clk 0:02:39]}  Bg4 {[%clk 0:02:13]} 19. f3 {[%clk 0:02:36]}  Bf5 {[%clk 0:02:13]} 20. Ne2 {[%clk 0:02:35]}  Rfb8 {[%clk 0:02:10]} 21. Ng3 {[%clk 0:02:34]}  Bg6 {[%clk 0:02:07]} 22. Re2 {[%clk 0:02:34]}  Ra6 {[%clk 0:01:56]} 23. Rf1 {[%clk 0:02:30]}  Qb4 {[%clk 0:01:44]} 24. Qd1 {[%clk 0:02:30]}  fxe5 {[%clk 0:01:34]} 25. dxe5 {[%clk 0:02:29]}  Qh4 {[%clk 0:01:26]} 26. Bf2 {[%clk 0:02:28]}  Qf4 {[%clk 0:01:26]} 27. Rfe1 {[%clk 0:02:09]}  e6 {[%clk 0:01:18]} 28. Nf1 {[%clk 0:02:08]}  Ra5 {[%clk 0:01:15]} 29. Be3 {[%clk 0:02:02]}  Qh4 {[%clk 0:01:12]} 30. Nh2 {[%clk 0:01:58]}  Bf5 {[%clk 0:00:53]} 31. g4 {[%clk 0:01:57]}  Bg6 {[%clk 0:00:52]} 32. Kg2 {[%clk 0:01:53]}  Rab5 {[%clk 0:00:51]} 33. Bf2 {[%clk 0:01:52]}  Rxb2 {[%clk 0:00:43]} 34. Bxh4 {[%clk 0:01:52]}  gxh4 {[%clk 0:00:44]} 35. Qxa4 {[%clk 0:01:51]}  Bd3 {[%clk 0:00:42]} 36. Rxb2 {[%clk 0:01:47]}  Rxb2+ {[%clk 0:00:41]} 37. Kh3 {[%clk 0:01:48]}  Bf4 {[%clk 0:00:39]} 38. Qxf4 {[%clk 0:01:47]} 1-0


[Site "https://www.chess.com"]

[Event "Titled Tuesday Blitz December 14 2021"]
[White "Ezat, Mohamed"]
[Black "Durarbayli, Vasif"]
[WhiteFideId "10600906"]
[BlackFideId "13402935"]
[WhiteElo "2400"]
[BlackElo "2599"]
[Result "0-1"]
[Round "02"]
[TimeControl "180+1"]
[Date "2021.12.14"]
[WhiteClock "0:00:10"]
[BlackClock "0:00:18"]

1. d4 {[%clk 0:03:00]}  Nf6 {[%clk 0:02:59]} 2. Nf3 {[%clk 0:02:59]}  c5 {[%clk 0:02:57]} 3. e3 {[%clk 0:02:58]}  d5 {[%clk 0:02:49]} 4. Bd3 {[%clk 0:02:57]}  Nc6 {[%clk 0:02:48]} 5. O-O {[%clk 0:02:55]}  cxd4 {[%clk 0:02:44]} 6. exd4 {[%clk 0:02:54]}  Bg4 {[%clk 0:02:43]} 7. c3 {[%clk 0:02:53]}  e6 {[%clk 0:02:40]} 8. Nbd2 {[%clk 0:02:52]}  Bd6 {[%clk 0:02:40]} 9. h3 {[%clk 0:02:51]}  Bh5 {[%clk 0:02:39]} 10. Re1 {[%clk 0:02:51]}  Qc7 {[%clk 0:02:38]} 11. a3 {[%clk 0:02:40]}  g5 {[%clk 0:02:17]} 12. Nf1 {[%clk 0:02:25]}  g4 {[%clk 0:02:03]} 13. hxg4 {[%clk 0:02:24]}  Nxg4 {[%clk 0:02:03]} 14. Bb5 {[%clk 0:02:14]}  O-O-O {[%clk 0:01:53]} 15. Bxc6 {[%clk 0:02:07]}  bxc6 {[%clk 0:01:40]} 16. Ne5 {[%clk 0:01:58]}  Rdg8 {[%clk 0:01:09]} 17. Ng3 {[%clk 0:01:02]}  Nxe5 {[%clk 0:00:55]} 18. Nxh5 {[%clk 0:00:58]}  Ng6 {[%clk 0:00:30]} 19. Nf6 {[%clk 0:00:54]}  Nh4 {[%clk 0:00:27]} 20. g4 {[%clk 0:00:40]}  Rg6 {[%clk 0:00:20]} 21. g5 {[%clk 0:00:39]}  Bf4 {[%clk 0:00:18]} 22. Qh5 {[%clk 0:00:17]}  Rxg5+ {[%clk 0:00:16]} 23. Qxg5 {[%clk 0:00:14]}  Bxg5 {[%clk 0:00:17]} 24. Bxg5 {[%clk 0:00:13]}  Nf3+ {[%clk 0:00:18]} 25. Kf1 {[%clk 0:00:13]}  Nxg5 {[%clk 0:00:19]} 26. Re3 {[%clk 0:00:13]}  h5 {[%clk 0:00:18]} 27. Ke2 {[%clk 0:00:12]}  h4 {[%clk 0:00:18]} 28. Rg1 {[%clk 0:00:13]}  Ne4 {[%clk 0:00:18]} 29. Rh1 {[%clk 0:00:12]}  Nxf6 {[%clk 0:00:18]} 30. Reh3 {[%clk 0:00:11]}  Nh5 {[%clk 0:00:18]} 31. Rf3 {[%clk 0:00:12]}  Nf4+ {[%clk 0:00:19]} 32. Kf1 {[%clk 0:00:12]}  Ng6 {[%clk 0:00:19]} 33. Rf6 {[%clk 0:00:10]}  Qe7 {[%clk 0:00:20]} 34. Rf3 {[%clk 0:00:10]}  Qg5 {[%clk 0:00:20]} 35. Rg1 {[%clk 0:00:10]}  Qc1+ {[%clk 0:00:20]} 36. Kg2 {[%clk 0:00:11]}  h3+ {[%clk 0:00:20]} 37. Kh2 {[%clk 0:00:12]}  Qxb2 {[%clk 0:00:16]} 38. Rxf7 {[%clk 0:00:13]}  Nh4 {[%clk 0:00:16]} 39. Rgg7 {[%clk 0:00:12]}  Nf5 {[%clk 0:00:16]} 40. Rc7+ {[%clk 0:00:12]}  Kb8 {[%clk 0:00:17]} 41. Rb7+ {[%clk 0:00:10]}  Qxb7 {[%clk 0:00:17]} 42. Rxb7+ {[%clk 0:00:10]}  Kxb7 {[%clk 0:00:18]} 0-1


[Site "https://www.chess.com"]